Cogmind - Beta 13 @@@ ROGUE MODE // 2024.06.06 @ 21:52:16 Player: Arioch Result: Destroyed by S-27 Virus with Autogun Performance ------------- Evolutions (3) 1500 Regions Visited (10) 2000 Robots Destroyed (65) 325 Value Destroyed (2486) 2486 Prototype IDs (38) 760 Alien Tech Used (0) 0 Bonus (899) 899 TOTAL SCORE: 7970 Bonus ------- High Alert Combat Kills 6 Follower Combat Kills 368 Aligned with FarCom 300 Met Data Miner 300 Friendly Fire -75 Cogmind --------- Core Integrity 0/700 Matter 184/300 Energy 98/100 System Corruption 1% Temperature Cool (0) Movement Core (50) Location -6/Proximity Caves Parts ------- > --- POWER (1) -------- (None) > --- PROPULSION (4) --- (None) > --- UTILITY (5) ------ Core Analyzer Hacking Suite Improved System Shield Corruption Screen > --- WEAPON (3) ------- (None) > --- INVENTORY (5) ---- Improved Deuterium Engine Micro Nuclear Core Antimatter Reactor Enhanced Flexi-carbon Leg Advanced Heat Sink Peak State ------------ > --- POWER ------------ Improved Deuterium Engine > --- PROPULSION ------- Carbon-fiber Leg Improved Carbon-fiber Leg Improved Carbon-fiber Leg Improved Carbon-fiber Leg > --- UTILITY ---------- Cryofiber Web Advanced Heat Sink Large Storage Unit Improved Signal Interpreter Reaction Control System > --- WEAPON ----------- Gatling Laser Gauss Rifle Gauss Rifle > --- INVENTORY -------- Nuclear Core Micro Nuclear Core Carbon-fiber Leg Carbon-fiber Leg Improved Heat Sink High-capacity Storage Unit Improved Sensor Array Weapon Cycler Improved Light Armor Plating Improved Medium Armor Plating System Shield Arc Projector Gauss Rifle Gauss Rifle Flak Gun [Rating: 51] Favorites ----------- Power Improved Deuterium Engine Engine Improved Deuterium Engine Power Core Nuclear Core Propulsion Carbon-fiber Leg Leg Carbon-fiber Leg Utility Large Storage Unit Device Cryofiber Web Storage Large Storage Unit Processor Improved Signal Interpreter Hackware Improved System Shield Protection Improved Medium Armor Plating Weapon Gauss Rifle Energy Gun Particle Gun Energy Cannon Particle Cannon Ballistic Gun Gauss Rifle Build | -11 -10 -10 -10 -9 -8 -7 -7 -7 -7 -6 ------- Run | Yrd Mat Min Exi Min Mat Fac Low Low Dat Pro Slots Evolved 6 | . . . . . 4 2 . . . . Power . | . . . . . . . . . . . Propulsion 2 | . . . . . 2 . . . . . Utility 3 | . . . . . 2 1 . . . . Weapon 1 | . . . . . . 1 . . . . Parts Attached 89 | 6 2 5 . 1 20 24 4 12 . 15 Power 9 | 1 . 1 . . 1 2 . 2 . 2 Engine 6 | 1 . 1 . . . 2 . 2 . . Core 3 | . . . . . 1 . . . . 2 Reactor . | . . . . . . . . . . . Propulsion 29 | 2 . 2 . . 9 9 2 5 . . Treads . | . . . . . . . . . . . Leg 29 | 2 . 2 . . 9 9 2 5 . . Wheel . | . . . . . . . . . . . Hover . | . . . . . . . . . . . Flight . | . . . . . . . . . . . Utility 22 | 1 2 . . . 6 5 . 1 . 7 Device 10 | . 1 . . . 3 3 . . . 3 Storage 4 | 1 1 . . . 1 1 . . . . Processor 4 | . . . . . 2 . . . . 2 Hackware 2 | . . . . . . . . . . 2 Protection 2 | . . . . . . 1 . 1 . . Artifact . | . . . . . . . . . . . Weapon 29 | 2 . 2 . 1 4 8 2 4 . 6 Energy Gun 8 | 1 . 2 . . 1 3 . . . 1 Energy Cannon 1 | . . . . . 1 . . . . . Ballistic Gun 20 | 1 . . . 1 2 5 2 4 . 5 Ballistic Cannon . | . . . . . . . . . . . Launcher . | . . . . . . . . . . . Special Weapon . | . . . . . . . . . . . Impact Weapon . | . . . . . . . . . . . Slashing Weapon . | . . . . . . . . . . . Piercing Weapon . | . . . . . . . . . . . Special Melee Weapon . | . . . . . . . . . . . Unidentified Prototypes 2 | . . . . . 2 . . . . . Parts Lost 34 | . . 1 . . 1 6 3 6 . 17 Power 4 | . . . . . . 1 . . . 3 Propulsion 11 | . . . . . . 2 2 3 . 4 Utility 6 | . . . . . . 2 . 1 . 3 Weapon 13 | . . 1 . . 1 1 1 2 . 7 Highest Loss Streak 9 | . . 1 . . 1 3 2 5 . 9 To Critical Strikes . | . . . . . . . . . . . Average Slot Usage (%) 96 | . 98 100 100 100 99 98 96 99 100 65 Engine 7 | . 14 14 14 14 3 6 7 7 7 4 Leg 28 | . 28 28 28 28 36 29 27 29 30 12 Device 11 | . 13 14 14 14 13 18 7 7 7 6 Storage 12 | . 14 14 14 14 9 8 15 15 15 9 Processor 6 | . . . . . 13 7 7 7 7 8 Protection 3 | . . . . . . 1 7 7 7 2 Energy Gun 6 | . 14 16 28 22 8 7 2 . . 1 Ballistic Gun 15 | . 14 11 . 5 9 15 20 23 23 12 Naked Turns 9 | . . . . . . . . . . 9 Heaviest Build 90 | 12 18 20 20 20 35 90 90 90 90 90 Greatest Support 69 | 20 20 20 20 20 59 69 69 66 50 50 Greatest Overweight (x) 26 | 3 . . . . . 1 1 2 1 26 Average Overweight (x) . | . . . . . . . 1 1 1 . Largest Inventory Capacity 20 | 8 10 10 10 10 15 20 20 20 20 20 Average Capacity 16 | 7 8 10 10 10 14 16 20 20 20 14 Most Carried 20 | 2 4 10 10 10 15 20 20 20 20 20 Average Carried 15 | 1 2 6 9 10 13 15 19 19 20 13 Final Capacity 20 | 8 10 10 10 10 15 20 20 20 20 5 Final Carried 20 | 2 4 10 10 10 15 20 20 20 20 5 Class Distribution -------------------- 26% | Tank 18% | Mutant 18% | Scavenger-Tank 16% | Scavenger-Skirmisher 10% | Scavenger-Mutant 6% | Skirmisher Dominant Class ---------------- Mutant | -10/Materials Mutant | -10/Mines Mutant | -10/Exiles Mutant | -9/Mines Scavenger-Mutant | -8/Materials Scavenger-Skirmisher | -7/Factory Tank | -7/Lower Caves Scavenger-Tank | -7/Lower Caves Scavenger-Tank | -7/Data Miner Scavenger-Tank | -6/Proximity Caves Resources | -11 -10 -10 -10 -9 -8 -7 -7 -7 -7 -6 ----------- Run | Yrd Mat Min Exi Min Mat Fac Low Low Dat Pro Matter Collected 2310 | 183 . 122 . 34 331 489 399 505 . 247 Remotely 264 | . . 122 . 34 108 . . . . . Salvage Created 2325 | . . 105 . 43 373 734 314 529 . 227 Parts 125 | . . 7 . 5 17 51 14 23 . 8 Haulers Intercepted . | . . . . . . . . . . . Recyclers Shooed 1 | . 1 . . . . . . . . . Parts Field Recycled . | . . . . . . . . . . . Retrieved Matter . | . . . . . . . . . . . Parts Self-Destructed 68 | . . . . . . . 9 39 . 20 Prevented 1 | . . . . . . . 1 . . . Kills | -11 -10 -10 -10 -9 -8 -7 -7 -7 -7 -6 ------- Run | Yrd Mat Min Exi Min Mat Fac Low Low Dat Pro Combat Hostiles Destroyed 57 | . . 3 . 3 7 21 6 12 . 5 Guns 51 | . . 1 . 3 6 18 6 12 . 5 Cannons 1 | . . . . . 1 . . . . . AOE 5 | . . 2 . . . 3 . . . . Classes Destroyed 13 | . . 1 . 1 4 4 2 1 . . Worker 1 | . . . . . 1 . . . . . Builder 2 | . . . . . 1 1 . . . . Minesweeper 1 | . . . . . . . 1 . . . Mechanic 1 | . . . . . . 1 . . . . Operator 1 | . . . . . . 1 . . . . Watcher 2 | . . . . . 1 1 . . . . Swarmer 21 | . . . . 3 2 8 2 5 . 1 Grunt 22 | . . 3 . . 3 9 1 5 . 1 Duelist 4 | . . . . . . . . 1 . 3 Sentry 3 | . . . . . . 1 1 1 . . Hunter 2 | . . . . . 2 . . . . . Programmer 3 | . . . . . . 3 . . . . Mutant 2 | . . . . . . . 2 . . . Best Kill Streak 9 | . . 2 . 3 3 9 2 6 . 2 Combat Bots Only 7 | . . 2 . 3 2 7 2 6 . 2 Max Kills in Single Turn 4 | . . 2 . 2 1 4 2 1 . 1 Gunslinging 1 | . . . . 1 . . . . . . Exploded 3 | . . 2 . . . 3 . . . . Melee . | . . . . . . . . . . . Uniques/NPCs Destroyed . | . . . . . . . . . . . Combat | -11 -10 -10 -10 -9 -8 -7 -7 -7 -7 -6 -------- Run | Yrd Mat Min Exi Min Mat Fac Low Low Dat Pro Hostile Shots Fired 483 | . . 21 . 4 59 110 68 95 . 126 Missed 166 | . . 5 . . 15 56 20 35 . 35 Damage Taken 5630 | . . 262 . 66 657 1155 613 1009 . 1868 Core 832 | . . 18 . 14 90 94 20 108 . 488 Absorbed by Shields . | . . . . . . . . . . . Regen/Repaired (Parts) 147 | . . . . . . 147 . . . . Core Remaining (%) 90 | 100 . . . 87 83 . . . . . Volleys Fired 189 | . 3 10 3 2 39 46 24 32 . 30 Largest 3 | . 2 2 2 2 2 3 3 3 . 3 Hottest 133 | . 60 80 105 105 93 133 111 84 . 106 Shots Fired 497 | . 6 20 6 4 75 135 73 96 . 82 Gun 496 | . 6 20 6 4 74 135 73 96 . 82 Cannon 1 | . . . . . 1 . . . . . Launcher . | . . . . . . . . . . . Special . | . . . . . . . . . . . Kinetic 371 | . 3 8 . . 39 91 64 96 . 70 Thermal 109 | . 3 10 6 4 36 38 . . . 12 Explosive . | . . . . . . . . . . . Electromagnetic 17 | . . 2 . . . 6 9 . . . Robot Hit Streak 9 | . 1 8 . 3 4 8 9 7 . 5 Robot Miss Streak 12 | . 4 2 . 1 3 12 7 4 . 12 Penetration Max 1 | . . . . . . . . . . 1 Secondary Targets 15 | . . 1 . 1 2 5 . 3 . 3 Max Gunslinging Chain 1 | . . 1 . 1 1 1 . 1 . 1 Shots Hit Robots 275 | . 1 16 . 3 44 86 37 52 . 36 Core Hits 157 | . . 8 . 3 16 73 17 19 . 21 Critical Kills 3 | . . . . . . . . 3 . . Critical Parts Destroyed 2 | . . 1 . . . . 1 . . . Critical Strikes 6 | . . 1 . . 1 . 1 3 . . Burn 1 | . . . . . 1 . . . . . Destroy 5 | . . 1 . . . . 1 3 . . Melee Attacks . | . . . . . . . . . . . Impact . | . . . . . . . . . . . Slashing . | . . . . . . . . . . . Piercing . | . . . . . . . . . . . Sneak Attacks . | . . . . . . . . . . . Combat Hostiles . | . . . . . . . . . . . Follow-up Attacks . | . . . . . . . . . . . Damage Inflicted 5862 | 4 10 262 . 44 800 2313 831 887 . 711 Guns 5088 | . 10 156 . 44 768 1681 831 887 . 711 Cannons 20 | . . . . . 20 . . . . . Explosions 692 | . . 92 . . . 600 . . . . Melee . | . . . . . . . . . . . Ramming 62 | 4 . 14 . . 12 32 . . . . Kinetic 3630 | . . 55 . . 340 977 782 887 . 589 Thermal 2068 | . 10 181 . 44 448 1263 . . . 122 Explosive . | . . . . . . . . . . . Electromagnetic 102 | . . 12 . . . 41 49 . . . Impact . | . . . . . . . . . . . Slashing . | . . . . . . . . . . . Piercing . | . . . . . . . . . . . Highest Corruption 1 | . . . . . 1 1 1 1 1 1 Average Corruption 1 | . . . . . 1 1 1 1 1 1 Corruption Purged . | . . . . . . . . . . . Corruption Blocked . | . . . . . . . . . . . Effects 22 | . . . . . 1 1 5 12 . 3 Message Errors 4 | . . . . . . . 2 2 . . Matter Fused 4 | . . . . . . . 1 2 . 1 Heat Flow Errors 2 | . . . . . . . . 2 . . Energy Discharges 5 | . . . . . . . 1 3 . 1 Parts Rejected 1 | . . . . . . . . 1 . . Parts Fused 1 | . . . . . . . . 1 . . Misfires 2 | . . . . . . . 1 . . 1 Alerts 2 | . . . . . 1 . . 1 . . Weapon Failures 1 | . . . . . . 1 . . . . Overload Shots . | . . . . . . . . . . . Overflow Damage 384 | . . . . . . 384 . . . . Projectiles . | . . . . . . . . . . . Explosions 374 | . . . . . . 374 . . . . Melee 10 | . . . . . . 10 . . . . Knockbacks . | . . . . . . . . . . . Impact . | . . . . . . . . . . . Kinetic . | . . . . . . . . . . . Secondary . | . . . . . . . . . . . Self-Inflicted Damage 392 | . . 33 . . . 359 . . . . Shots 6 | . . 1 . . . 5 . . . . Rammed 1 | . . . . . . . . . . 1 Targets Rammed 6 | 1 . 1 . . 2 1 . . . 1 Kicked 5 | 1 . 1 . . 2 1 . . . . Crushed . | . . . . . . . . . . . Highest Temperature 247 | . 20 114 135 90 161 73 192 247 . 107 Average Temperature 65 | . 15 51 69 49 47 39 101 111 . 55 Received Heat Transfer 1260 | . . 126 . . 171 252 90 288 . 333 Siege Activations . | . . . . . . . . . . . Robots Corrupted . | . . . . . . . . . . . Combat Hostiles . | . . . . . . . . . . . Parts Fried . | . . . . . . . . . . . Impact Corruptions 1 | . . . . . . 1 . . . . Robots Melted . | . . . . . . . . . . . Combat Hostiles . | . . . . . . . . . . . Parts Melted 7 | . . . . . 2 5 . . . . Heat Transferred 3480 | . 25 200 . 99 1073 1824 . . . 259 Parts Sabotaged . | . . . . . . . . . . . Parts Stolen . | . . . . . . . . . . . Parts Stripped . | . . . . . . . . . . . Power Chain Reactions 1 | . . 1 . . . . . . . . Alert | -11 -10 -10 -10 -9 -8 -7 -7 -7 -7 -6 ------- Run | Yrd Mat Min Exi Min Mat Fac Low Low Dat Pro Peak Influence 415 | . 29 108 . 70 151 415 . . . . Initial 56 | . . 10 . . 27 56 . . . . Average 100 | . 15 63 . 26 74 157 . . . . Maximum Alert Level 2 | . . . . . . 2 . . . . Low Security (%) 85 | 100 100 100 . 100 100 69 . . . . Level 1 12 | . . . . . . 25 . . . . Level 2 2 | . . . . . . 4 . . . . Level 3 . | . . . . . . . . . . . Level 4 . | . . . . . . . . . . . Level 5 . | . . . . . . . . . . . High Security . | . . . . . . . . . . . Max Security . | . . . . . . . . . . . Squads Dispatched 10 | . . . . . 1 7 . 1 . 1 Investigation . | . . . . . . . . . . . Extermination 4 | . . . . . . 4 . . . . Reinforcement 3 | . . . . . 1 2 . . . . Assault 2 | . . . . . . . . 1 . 1 Garrison 1 | . . . . . . 1 . . . . Intercept . | . . . . . . . . . . . Searches Triggered . | . . . . . . . . . . . Construction Impeded 1 | . . . . . . 1 . . . . Haulers Reinforced . | . . . . . . . . . . . Active Scanning Responses . | . . . . . . . . . . . Cargo Convoy Interrupts . | . . . . . . . . . . . Stealth | -11 -10 -10 -10 -9 -8 -7 -7 -7 -7 -6 --------- Run | Yrd Mat Min Exi Min Mat Fac Low Low Dat Pro Distress Signals 3 | . . . . . 1 1 . . . 1 Communications Jammed . | . . . . . . . . . . . Distress Signals . | . . . . . . . . . . . Times Spotted 115 | . 2 4 . 3 13 33 6 26 . 28 Peak Tracking Total 11 | . 2 2 . . 3 5 3 11 . 6 Tactical Retreats 10 | . . . . . 1 1 . 5 . 3 Traps | -11 -10 -10 -10 -9 -8 -7 -7 -7 -7 -6 ------- Run | Yrd Mat Min Exi Min Mat Fac Low Low Dat Pro Traps Triggered 2 | . . . . . 1 1 . . . . Indirectly . | . . . . . . . . . . . Trap Hack Attempts . | . . . . . . . . . . . Triggered . | . . . . . . . . . . . Disarmed . | . . . . . . . . . . . Reprogrammed . | . . . . . . . . . . . Reused . | . . . . . . . . . . . Traps Extracted . | . . . . . . . . . . . Installed . | . . . . . . . . . . . Triggered . | . . . . . . . . . . . Machines | -11 -10 -10 -10 -9 -8 -7 -7 -7 -7 -6 ---------- Run | Yrd Mat Min Exi Min Mat Fac Low Low Dat Pro Machines Disabled 13 | . . . . . . 10 2 . . 1 Max in Single Turn 8 | . . . . . . 8 1 . . 1 Machines Repaired . | . . . . . . . . . . . Machines Dismantled . | . . . . . . . . . . . Machines Sabotaged . | . . . . . . . . . . . Overloaded Fab Kills . | . . . . . . . . . . . Hacking | -11 -10 -10 -10 -9 -8 -7 -7 -7 -7 -6 --------- Run | Yrd Mat Min Exi Min Mat Fac Low Low Dat Pro Machines Accessed 19 | . 1 . 1 1 3 6 2 1 4 . Terminals 9 | . 1 . . . 3 5 . . . . Fabricators . | . . . . . . . . . . . Repair Stations 1 | . . . . . . 1 . . . . Recycling Units . | . . . . . . . . . . . Scanalyzers . | . . . . . . . . . . . Garrison Access . | . . . . . . . . . . . Total Hacks 68 | . 2 . 1 1 11 18 5 1 29 . Successful 55 | . 1 . 1 1 6 11 5 1 29 . Failed 13 | . 1 . . . 5 7 . . . . Catastrophic 1 | . . . . . . 1 . . . . Database Lockouts . | . . . . . . . . . . . Manual 23 | . 2 . 1 . 10 10 . . . . Terminals 24 | . 2 . . . 11 11 . . . . Fabricators . | . . . . . . . . . . . Repair Stations 7 | . . . . . . 7 . . . . Recycling Units . | . . . . . . . . . . . Scanalyzers . | . . . . . . . . . . . Garrison Access . | . . . . . . . . . . . Terminal Hacks 41 | . . . 1 1 3 1 5 1 29 . Record 15 | . . . . . . . 4 . 11 . Part Schematic 9 | . . . . . . . . . 9 . Robot Schematic 6 | . . . . . . . . . 6 . Prototype ID Bank 4 | . . . . . . 1 . . 3 . Open Door 3 | . . . . 1 . . 1 1 . . Locate Traps 1 | . . . . . 1 . . . . . Recall Investigation 1 | . . . . . 1 . . . . . Zone Layout 1 | . . . . . 1 . . . . . Derelict Proto ID Bank 1 | . . . 1 . . . . . . . Fabricator Hacks . | . . . . . . . . . . . Repair Station Hacks 6 | . . . . . . 6 . . . . Scan Component 3 | . . . . . . 3 . . . . Repair 3 | . . . . . . 3 . . . . Recycling Unit Hacks . | . . . . . . . . . . . Scanalyzer . | . . . . . . . . . . . Garrison Access Hacks . | . . . . . . . . . . . Unauthorized Hacks 8 | . 1 . . . 3 4 . . . . Terminals 8 | . 1 . . . 3 4 . . . . Assimilate 2 | . . . . . . 2 . . . . Botnet 6 | . 1 . . . 3 2 . . . . Fabricators . | . . . . . . . . . . . Repair Stations . | . . . . . . . . . . . Recycling Units . | . . . . . . . . . . . Scanalyzers . | . . . . . . . . . . . Garrison Access . | . . . . . . . . . . . Data Cores Recovered . | . . . . . . . . . . . Used . | . . . . . . . . . . . Hacking Detections 9 | . 1 . . . 3 5 . . . . Full Trace Events . | . . . . . . . . . . . Feedback Events . | . . . . . . . . . . . Feedback Blocked . | . . . . . . . . . . . Robot Schematics Acquired 6 | . . . . . . . . . 6 . Robots Built . | . . . . . . . . . . . Authchips . | . . . . . . . . . . . Time . | . . . . . . . . . . . Total Robot Build Rating . | . . . . . . . . . . . Part Schematics Acquired 9 | . . . . . . . . . 9 . Parts Built . | . . . . . . . . . . . Authchips . | . . . . . . . . . . . Time . | . . . . . . . . . . . Total Part Build Rating . | . . . . . . . . . . . Parts Repaired 3 | . . . . . . 3 . . . . Time 126 | . . . . . . 126 . . . . Parts Recycled . | . . . . . . . . . . . Recycled Matter . | . . . . . . . . . . . Retrieved Matter . | . . . . . . . . . . . Retrieved Components . | . . . . . . . . . . . Parts Scanalyzed . | . . . . . . . . . . . Part Schematics Acquired . | . . . . . . . . . . . Parts Damaged . | . . . . . . . . . . . Bothacking | -11 -10 -10 -10 -9 -8 -7 -7 -7 -7 -6 ------------ Run | Yrd Mat Min Exi Min Mat Fac Low Low Dat Pro Used RIF Installer . | . . . . . . . . . . . Robots Hacked . | . . . . . . . . . . . Non-combat . | . . . . . . . . . . . Combat . | . . . . . . . . . . . Robot Hacks Applied . | . . . . . . . . . . . Relay Couplers Released . | . . . . . . . . . . . Fabnet Peak Effective % . | . . . . . . . . . . . Robots Rewired 5 | . . . . . . . 3 2 . . Allies Hacked . | . . . . . . . . . . . Hacks Repelled . | . . . . . . . . . . . Allies | -11 -10 -10 -10 -9 -8 -7 -7 -7 -7 -6 -------- Run | Yrd Mat Min Exi Min Mat Fac Low Low Dat Pro Total Allies 11 | . . 1 . 3 . 1 3 2 . 1 Largest Group 3 | . . 1 . 3 3 1 3 3 . 1 Highest-Rated Group 96 | . . 31 . 74 74 10 75 75 . 96 Highest-Rated Ally 96 | . . 31 . 31 31 10 25 25 . 96 Total Orders . | . . . . . . . . . . . Ally Attacks 60 | . . 3 . . 18 . . 25 . 14 Total Damage 1279 | . . 62 . . 296 . . 509 . 412 Kills 13 | . . 1 . . 2 . . 6 . 4 Allies Corrupted . | . . . . . . . . . . . Allies Melted . | . . . . . . . . . . . Intel | -11 -10 -10 -10 -9 -8 -7 -7 -7 -7 -6 ------- Run | Yrd Mat Min Exi Min Mat Fac Low Low Dat Pro Robot Analysis Total . | . . . . . . . . . . . Derelict Logs Recovered 5 | . . 1 . 1 . . . 2 . 1 Drone Launches . | . . . . . . . . . . . Drone Recoveries . | . . . . . . . . . . . Exploration | -11 -10 -10 -10 -9 -8 -7 -7 -7 -7 -6 ------------- Run | Yrd Mat Min Exi Min Mat Fac Low Low Dat Pro Turns Passed 7754 | 113 136 337 319 647 628 1758 1389 1696 173 558 Spaces Moved 4351 | 74 102 244 258 403 386 880 659 810 92 443 Core 383 | 9 . . . . . . . . . 374 Treads . | . . . . . . . . . . . Legs 3968 | 65 102 244 258 403 386 880 659 810 92 69 Wheels . | . . . . . . . . . . . Hover . | . . . . . . . . . . . Flight . | . . . . . . . . . . . Fastest Speed 50 | 50 120 120 120 120 120 120 190 190 190 50 Average Speed 145 | 127 120 120 120 120 123 137 190 190 190 84 Slowest Speed 1350 | 200 120 120 120 120 125 190 190 260 190 1350 Overloaded Moves . | . . . . . . . . . . . Propulsion Burnouts . | . . . . . . . . . . . Robots Hopped . | . . . . . . . . . . . Cave-ins Triggered . | . . . . . . . . . . . Exploration Rate (%) 52 | 4 28 26 64 99 29 22 78 87 75 64 Regions Visited 10 Branch Regions 7 Pre-discovered Areas 2 | . . . . 1 . . . . 1 . Known Exits Taken 5 | . . . . . 1 1 1 1 1 . Unknown Exits Taken 5 | 1 1 1 1 1 . . . . . . Scrap Searched 11 | . . . . 1 . . 3 6 . 1 Spaces Dug . | . . . . . . . . . . . Terrain Destroyed 57 | . . 5 . . . 48 2 1 . 1 Melee . | . . . . . . . . . . . Projectile 4 | . . . . . . . 2 1 . 1 AOE 53 | . . 5 . . . 48 . . . . Terrain Rammed . | . . . . . . . . . . . Walls Destroyed . | . . . . . . . . . . . Machines Disabled . | . . . . . . . . . . . Actions | -11 -10 -10 -10 -9 -8 -7 -7 -7 -7 -6 --------- Run | Yrd Mat Min Exi Min Mat Fac Low Low Dat Pro Total 5409 | 89 109 268 262 562 487 1351 743 891 91 556 Wait 599 | 7 . 4 . 156 4 355 7 8 . 58 Move 4342 | 74 101 243 257 402 385 879 658 809 91 443 Hop . | . . . . . . . . . . . Pick Up 60 | 2 2 4 1 . 15 23 3 4 . 6 Fast Attach 26 | 6 1 1 . 1 6 3 . 5 . 3 Attach 30 | . . 1 . . 4 7 3 3 . 12 Detach 5 | . . 1 . . 3 . . . . 1 Swap 33 | . 1 3 . . 10 14 1 4 . . Drop 53 | . 1 . 1 1 19 23 1 5 . 2 Fire 189 | . 3 10 3 2 39 46 24 32 . 30 Melee . | . . . . . . . . . . . Ram 1 | . . . . . . . . . . 1 Kick 4 | . . 1 . . 2 1 . . . . Crush . | . . . . . . . . . . . Escape Stasis . | . . . . . . . . . . . Rewire 67 | . . . . . . . 46 21 . . Trap . | . . . . . . . . . . . Miscellaneous . | . . . . . . . . . . . Route ------- -11/Scrapyard -10/Materials -10/Mines -10/Exiles (discovered 2 exits: *Min x2) -9/Mines (discovered 2 exits: *Mat x2) -8/Materials (discovered 2 exits: *Fac x2) -7/Factory -7/Lower Caves -7/Lower Caves (discovered 2 exits: *Fac / *Dat) -7/Data Miner -6/Proximity Caves History --------- Turn | Location | Event 17 | -11/Scrapyard | Discovered new exit (range 16) 114 | -11/Scrapyard | Entered Materials 177 | -10/Materials | Discovered new exit (range 11) 250 | -10/Materials | Entered Mines 253 | -10/Mines | Received a Mining Laser from a helpful Derelict 311 | -10/Mines | Learned 8 Materials zone layouts 320 | -10/Mines | Build established: Mutant 578 | -10/Mines | Deemed a non-threat by the Exiles lab entrance 579 | -10/Mines | Discovered new exit (range 5) 587 | -10/Mines | Entered Exiles 607 | -10/Exiles | Discovered new exit (range 14) 623 | -10/Exiles | Met 8R-AWN 644 | -10/Exiles | Met EX-HEX 677 | -10/Exiles | Met EX-BIN 692 | -10/Exiles | Aligned with FarCom system 693 | -10/Exiles | Given EX-Vault access code 733 | -10/Exiles | Opened EX-Vault 742 | -10/Exiles | Found Chronowheel 768 | -10/Exiles | Warned to stay clear of 0b10 Research branches 800 | -10/Exiles | Met EX-DEC 894 | -10/Exiles | Discovered new exit (range 12) 906 | -10/Exiles | Left Exiles lab with Chronowheel 906 | -10/Exiles | Entered Mines 1321 | -9/Mines | Escorted by a lone wolf Derelict 1402 | -9/Mines | Discovered new exit (range 12) 1420 | -9/Mines | Learned location of Zion (-6) 1531 | -9/Mines | Discovered new exit (range 5) 1542 | -9/Mines | Met a Derelict who couldn't figure out how to use a Trap Extractor 1553 | -9/Mines | Entered Materials 1553 | -8/Materials | Accompanied by 3 allies 1553 | -8/Materials | Evolved 4 slots: Propulsion x2, Utility x2 1554 | -8/Materials | Identified exit to Factory 1558 | -8/Materials | Led the pair of lost Derelicts to an unsafe place 1629 | -8/Materials | Build established: Scavenger-Mutant 2181 | -8/Materials | Entered Factory 2181 | -7/Factory | Evolved 2 slots: Utility x1, Weapon x1 2491 | -7/Factory | Build established: Scavenger-Skirmisher 2642 | -7/Factory | Repaired Carbon-fiber Leg 2693 | -7/Factory | Repaired Adv. Heat Sink 2733 | -7/Factory | Repaired Cryofiber Web 2968 | -7/Factory | Garrison activated, responded to threat 3370 | -7/Factory | Destroyed 7 combat bots 3569 | -7/Factory | Lost 3 parts (2u1w) 3708 | -7/Factory | Discovered new exit (range 14) 3743 | -7/Factory | Build established: Skirmisher 3756 | -7/Factory | Identified exit to Lower Caves 3939 | -7/Factory | Entered Lower Caves 4235 | -7/Lower Caves | Build established: Tank 4369 | -7/Lower Caves | Attracted the attention of an 0b10 checkpoint 4516 | -7/Lower Caves | Attacked by a delusional Derelict stockpiling parts 4854 | -7/Lower Caves | Learned Extension stockpile data 4854 | -7/Lower Caves | Learned Armory security intel 4854 | -7/Lower Caves | Learned Factory terminal intel 5041 | -7/Lower Caves | Attacked by a delusional Derelict stockpiling Unaware 5238 | -7/Lower Caves | Discovered new exit (range 3) 5242 | -7/Lower Caves | Identified exit to Lower Caves 5328 | -7/Lower Caves | Entered another Lower Caves area 5328 | -7/Lower Caves | Accompanied by 3 allies 5334 | -7/Lower Caves | Discovered new exit (range 12) 5368 | -7/Lower Caves | Identified exit to Factory 5472 | -7/Lower Caves | Learned Factory emergency access door positions 5526 | -7/Lower Caves | Learned Factory garrison access intel 5956 | -7/Lower Caves | Attracted the attention of an 0b10 outpost 6016 | -7/Lower Caves | Lost 3 allies 6080 | -7/Lower Caves | Lost 5 parts (2n1u2w) 6318 | -7/Lower Caves | Build established: Scavenger-Tank 6974 | -7/Lower Caves | Discovered new exit (range 13) 7016 | -7/Lower Caves | Identified exit to Data Miner 7024 | -7/Lower Caves | Entered Data Miner 7024 | -7/Data Miner | Discovered new exit (range 6) 7032 | -7/Data Miner | Identified exit to Proximity Caves 7061 | -7/Data Miner | Met Data Miner 7119 | -7/Data Miner | Learned location of Section 7 (-2) 7119 | -7/Data Miner | Acquired the access code to Warlord's prototype stash 7154 | -7/Data Miner | Received God Mode back door access code from Data Miner 7197 | -7/Data Miner | Entered Proximity Caves 7199 | -6/Proximity Caves | Spotter reported a threat 7200 | -6/Proximity Caves | Spotter reported a threat 7311 | -6/Proximity Caves | Spotter reported a threat 7363 | -6/Proximity Caves | Spotter reported a threat 7384 | -6/Proximity Caves | Spotter reported a threat 7416 | -6/Proximity Caves | Attracted the attention of an 0b10 outpost 7443 | -6/Proximity Caves | Spotter reported a threat 7450 | -6/Proximity Caves | Escorted by Enhanced Grunt 7458 | -6/Proximity Caves | Spotter reported a threat 7484 | -6/Proximity Caves | Lost 7 parts (4n1u2w) 7511 | -6/Proximity Caves | Spotter reported a threat 7517 | -6/Proximity Caves | Core integrity fell below 50% 7558 | -6/Proximity Caves | Released all parts (3) 7560 | -6/Proximity Caves | Core integrity fell below 20% 7582 | -6/Proximity Caves | Lost 9 parts (3p1u5w) 7592 | -6/Proximity Caves | Attracted the attention of an 0b10 checkpoint 7648 | -6/Proximity Caves | Learned Factory stockpile data 7755 | -6/Proximity Caves | Destroyed by S-27 Virus with Autogun Last Messages --------------- 07566_ Searching scrap... 07566_ Found Imp. System Shield. 07566_ Found Hacking Suite. 07566_ Found 20 Matter. 07567_ Acquired 20 matter. 07567_ Acquired Imp. System Shield. 07569_ Acquired Hacking Suite. 07592_ Y-54 Guardian: "INTERCEPTING UNREGISTERED DERELICT." 07613_ Acquired Mic. Nuclear Core. 07615_ Acquired 46 matter. 07616_ Acquired Corruption Screen. 07619_ Acquired Prototype Leg. 07620_ Dropped Lgt. Nuclear Core. 07620_ Acquired Antimatter Reactor. 07621_ Dropped Imp. Field Recycling Unit. 07622_ Acquired Adv. Heat Sink. 07648_ Acquired derelict log, extracted data. Data stored: Factory stockpile data. 07751_ Imp. Sensor Array destroyed. Map ----- +----------------------------------------------------+ | ???????????????? # ###??????# # | | ??????????????? ## ##????#### | | ??????????????? #????# ## | | ??????????????????# # #???## | | ?????????????????## " ### ##???# # | | ?????????????? ## " ??# ###????# # | | ?????????????? "" ### ##?????## ## | | ??????????????? " ##???#?## #? | | ?????????????????? " """ ##??? #?# ##? | | ??????????????????"" "" ##?? #?## ##?? | | ????????????????? "" " # ## #??# ##??? | | ???????????????? "" ## #??# ##?### | | ???????????????? "" ## #??# ##?## | | ???????????????? "" #### #??# | | ??????????????? " # ## ## #??# | | ??????????????? ## #?# ## # ##?## | | ??????????????# ?# #??##?## ## ## | | ??????????????## ##??# #????## ### | | ??????????????? ????# #???## #?# | | ???????????????## ????# ##### ##?### | | ????????????????## ###?????# #????#### | | ?????????????????#?#####???# ##??????# | | ??????????????????## ############## #??????# | | ??????????????????# ##????# ## #??????# | | ??????????????????# ##???# #??????##? | | ??????????????????## @ ###?# #????????? | | ???????????????????# ### #????????? | | ????????????? ss #????????? | | ???????????? ss #????????? | | ???????????# #???????? | | ????????????# ## #????? | | ???????????????## #### #???? | | ????????????????# ##### ##??# #???? | | ????????????????# #????## #???# #??? | | ????????????????# #??????## #???# ##??? | | ????????????????# ????????### ???## ## #???? | | ????????????????#???????????## ##???#####?# ##???? | | ?????????????????????????????###???????????##????? | | ?????????????????????????????????????????????????? | | ?????????????????????????????????????????????????? | | ?????????????????????????????????????????????????? | | ?????????????????????????????????????????????????? | | ?????????????????????????????????????????????????? | | ?????????????????????????????????????????????????? | | ?????????????????????????????????????????????????? | | ?????????????????????????????????????????????????? | | ?????????????????????????????????????????????????? | | ?????????????????????????????????????????????????? | | ?????????????????????????????????????????????????? | | ?????????????????????????????????????????????????? | +----------------------------------------------------+ Best States ------------- Heat Dissipation 53 Energy Generation 16 Energy Capacity 290 Matter Stores 300 Matter Capacity 300 Sight Range 20 Robot Scan Range 15 Terrain Scan Density 10 Base Temperature (-) 100 Corruption Block 8 Armor Coverage 225 Evasion (%) 59 Core Analysis 6 Offensive Hacking 10 Defensive Hacking 12 Item Schematics ----------------- Combat Drone Bay | -7/Data Miner | Free Lgt. Regenerative Plating | -7/Data Miner | Free Cld. Aerolev Unit | -7/Data Miner | Free Gravity Neutralizer | -7/Data Miner | Free Antimatter Cannon | -7/Data Miner | Free Gyrokinetic Inverter | -7/Data Miner | Free Imp. Shock Absorption System | -7/Data Miner | Free Hvy. Shock Bomb Launcher | -7/Data Miner | Free Wave Gun | -7/Data Miner | Free Robot Schematics ------------------ L-41 Fighter | -7/Data Miner | Free W-25 Informer | -7/Data Miner | Free A-15 Conveyor | -7/Data Miner | Free R-10 Processor | -7/Data Miner | Free B-60 Warrior | -7/Data Miner | Free M-22 Extractor | -7/Data Miner | Free Fabricated ------------ Nothing Alien Tech Used ----------------- None Achievements -------------- None Challenges ------------ None Game ------ Seed CargoSniperExpander Manual? 0 Play Time 00:59:07 Cumulative 54.1 hours Start 2024.06.06 @ 20:44:12 End 2024.06.06 @ 21:52:16 Sessions 1 Manual Loads 0 Difficulty Rogue Special Mode None Game No. 46 Rogue 46 Adventurer 0 Explorer 0 Win Type - Total 0 Types 0/0/0/0/0/0/0/0/0 Lore% 39 Gallery% 39 Achievement% 32 Wizard Run 0 Options --------- Layout 1 ASCII 0 Keyboard 0 Movement Numpad Keybinds 0 Fullscreen 1 Font 20/SmallcapsGlow Map View 54x42 Zoom Use 0% Tactical HUD 1 Map Filters NONE Filters NONE Steam 1 RUN: 1fcf0ff9-b5e9-43de-b88a-f4406f02fa63